fUST/lending_fUST_20260107
["ID","MTS","AMOUNT","RATE_DAILY","PERIOD"]
[400653405,1767768647900,-261.33,0.000327,2]
[400653406,1767768647909,-617.40005154,0.00032754,2]
[400653407,1767768647919,-35976.17910447,0.00032754,2]
[400653408,1767768647928,-2742.42415286,0.00032754,2]
[400653409,1767768647940,-152.0,0.000328,120]
[400653410,1767768647950,-243.07,0.000328,7]
[400653411,1767768647959,-258.12,0.000328,7]
[400653412,1767768647968,-2414.2803724,0.00032808,2]
[400653413,1767768647977,-1346.23,0.00032876,120]
[400653414,1767768647988,-21192.59,0.00032877,10]
[400653415,1767768648002,-30903.94,0.00032877,10]
[400653416,1767768648014,-25753.29,0.00032877,10]
[400653417,1767768648024,-21461.07,0.00032877,10]
[400653418,1767768648034,-1041.66666667,0.00032877,10]
[400653419,1767768648046,-191.73798973,0.000329,120]
[400653420,1767768648056,-2414.2803724,0.00032911,2]
[400653421,1767768648065,-5000.0,0.00032913,2]
[400653422,1767768648075,-25963.54,0.00033,14]
[400653423,1767768648084,-200.632316,0.00033,31]
[400653424,1767768648093,-200.632316,0.00033,31]
[400653425,1767768648105,-200.632316,0.00033,31]
[400653426,1767768648116,-200.632316,0.00033,31]
[400653427,1767768648126,-209.524359,0.00033,31]
[400653428,1767768648136,-209.524359,0.00033,31]
[400653429,1767768648146,-209.524359,0.00033,31]
[400653430,1767768648157,-209.524359,0.00033,31]
[400653431,1767768648168,-241.004676,0.00033,31]
[400653432,1767768648179,-1016.281206,0.00033,31]
[400653433,1767768648187,-241.004676,0.00033,31]
[400653434,1767768648196,-241.004676,0.00033,31]
[400653435,1767768648206,-1016.281206,0.00033,31]
[400653436,1767768648215,-1016.281206,0.00033,31]
[400653437,1767768648224,-241.004676,0.00033,31]
[400653438,1767768648233,-1016.281206,0.00033,31]
[400653439,1767768648242,-154.171022,0.00033,31]
[400653440,1767768648251,-530.111159,0.00033,31]
[400653441,1767768648260,-530.111159,0.00033,31]
[400653442,1767768648270,-530.111159,0.00033,31]
[400653443,1767768648280,-530.111159,0.00033,31]
[400653444,1767768648289,-225.672265,0.00033,31]
[400653445,1767768648298,-225.672265,0.00033,31]
[400653446,1767768648307,-151.0,0.00033,31]
[400653447,1767768648317,-218.702509,0.00033,31]
[400653448,1767768648326,-225.672265,0.00033,31]
[400653449,1767768648335,-225.672265,0.00033,31]
[400653450,1767768648344,-218.702509,0.00033,31]
[400653451,1767768648355,-218.702509,0.00033,31]
[400653452,1767768648364,-218.702509,0.00033,31]
[400653453,1767768648373,-179.448151,0.00033,31]
[400653454,1767768648382,-184.812283,0.00033,31]
[400653455,1767768648392,-184.812283,0.00033,31]
[400653456,1767768648401,-184.812283,0.00033,31]
[400653457,1767768648410,-151.0,0.00033,31]
[400653458,1767768648419,-184.812283,0.00033,31]
[400653459,1767768648429,-151.0,0.00033,31]
[400653460,1767768648438,-634.815792,0.00033,28]
[400653461,1767768648448,-634.815792,0.00033,28]
[400653462,1767768648459,-634.815792,0.00033,28]
[400653463,1767768648468,-634.815792,0.00033,28]
[400653464,1767768648477,-151.0,0.00033,31]
[400653465,1767768648487,-247.352857,0.00033,31]
[400653466,1767768648496,-151.0,0.00033,31]
[400653467,1767768648505,-247.352857,0.00033,31]
[400653468,1767768648514,-247.352857,0.00033,31]
[400653469,1767768648523,-247.352857,0.00033,31]
[400653470,1767768648532,-298.315005,0.00033,31]
[400653471,1767768648542,-298.315005,0.00033,31]
[400653472,1767768648551,-298.315005,0.00033,31]
[400653473,1767768648560,-298.315005,0.00033,31]
[400653474,1767768648570,-1019.0,0.00033,7]
[400653475,1767768648579,-160.0,0.00033061,3]
[400653476,1767768648588,-157.01821301,0.00033126,10]
[400653477,1767768648600,-402.32,0.0003315,34]
[400653478,1767768648609,-2000.0,0.00033165,7]
[400653479,1767768648620,-167.701236,0.00033218,31]
[400653480,1767768648635,-297.211329,0.00033218,31]
[400653481,1767768648652,-214.456704,0.00033218,31]
[400653482,1767768648665,-214.456704,0.00033218,31]
[400653483,1767768648679,-214.456704,0.00033218,31]
[400653484,1767768648693,-214.456704,0.00033218,31]
[400653485,1767768648707,-151.0,0.00033218,31]
[400653486,1767768648721,-151.0,0.00033218,31]
[400653487,1767768648734,-151.0,0.00033218,31]
[400653488,1767768648749,-292.141919,0.00033218,31]
[400653489,1767768648762,-151.0,0.00033218,31]
[400653490,1767768648776,-151.0,0.00033218,31]
[400653491,1767768648789,-234.556182,0.00033218,31]
[400653492,1767768648801,-151.0,0.00033218,31]
[400653493,1767768648814,-151.0,0.00033218,31]
[400653494,1767768648828,-151.0,0.00033218,31]
[400653495,1767768648841,-151.0,0.00033218,31]
[400653496,1767768648852,-1626.684503,0.00033218,31]
[400653497,1767768648863,-1626.684503,0.00033218,31]
[400653498,1767768648876,-1626.684503,0.00033218,31]
[400653499,1767768648889,-1626.684503,0.00033218,31]
[400653500,1767768648902,-151.0,0.00033218,31]
[400653501,1767768648915,-151.0,0.00033218,31]
[400653502,1767768648929,-151.0,0.00033218,31]
[400653503,1767768648943,-151.0,0.00033218,31]
[400653504,1767768648956,-194.927323,0.00033218,31]
[400653505,1767768648968,-194.927323,0.00033218,31]
[400653506,1767768648978,-194.927323,0.00033218,31]
[400653507,1767768648988,-151.0,0.00033218,31]
[400653508,1767768649001,-151.0,0.00033218,31]
[400653509,1767768649016,-194.927323,0.00033218,31]
[400653510,1767768649027,-151.0,0.00033218,31]
[400653511,1767768649038,-1103123.3764,0.0003322,30]
[400653512,1767768649050,-214.456704,0.0003322,31]
[400653513,1767768649063,-214.456704,0.0003322,31]
[400653514,1767768649074,-214.456704,0.0003322,31]
[400653515,1767768649084,-214.456704,0.0003322,31]
[400653516,1767768649096,-151.0,0.0003322,31]
[400653517,1767768649108,-151.0,0.0003322,31]
[400653518,1767768649118,-151.0,0.0003322,31]
[400653519,1767768649130,-151.0,0.0003322,31]
[400653520,1767768649142,-151.0,0.0003322,31]
[400653521,1767768649153,-151.0,0.0003322,31]
[400653522,1767768649165,-151.0,0.0003322,31]
[400653523,1767768649176,-151.0,0.0003322,31]
[400653524,1767768649188,-1626.684503,0.0003322,31]
[400653525,1767768649198,-1626.684503,0.0003322,31]
[400653526,1767768649211,-1626.684503,0.0003322,31]
[400653527,1767768649223,-1626.684503,0.0003322,31]
[400653528,1767768649236,-151.0,0.0003322,31]
[400653529,1767768649248,-151.0,0.0003322,31]
[400653530,1767768649259,-151.0,0.0003322,31]
[400653531,1767768649270,-151.0,0.0003322,31]
[400653532,1767768649282,-194.927323,0.0003322,31]
[400653533,1767768649293,-194.927323,0.0003322,31]
[400653534,1767768649304,-194.927323,0.0003322,31]
[400653535,1767768649315,-151.0,0.0003322,31]
[400653536,1767768649327,-222.050816,0.0003322,31]
[400653537,1767768649338,-194.927323,0.0003322,31]
[400653538,1767768649349,-153.683464,0.0003322,31]
[400653539,1767768649360,-209.524359,0.0003322,31]
[400653540,1767768649372,-209.524359,0.0003322,31]
[400653541,1767768649384,-209.524359,0.0003322,31]
[400653542,1767768649396,-209.524359,0.0003322,31]
[400653543,1767768649408,-241.004676,0.0003322,31]
[400653544,1767768649420,-241.004676,0.0003322,31]
[400653545,1767768649431,-1016.281206,0.0003322,31]
[400653546,1767768649443,-1016.281206,0.0003322,31]
[400653547,1767768649456,-241.004676,0.0003322,31]
[400653548,1767768649467,-1016.281206,0.0003322,31]
[400653549,1767768649478,-241.004676,0.0003322,31]
[400653550,1767768649489,-1016.281206,0.0003322,31]
[400653551,1767768649501,-530.111159,0.0003322,31]
[400653552,1767768649513,-530.111159,0.0003322,31]
[400653553,1767768649525,-530.111159,0.0003322,31]
[400653554,1767768649537,-530.111159,0.0003322,31]
[400653555,1767768649549,-225.672265,0.0003322,31]
[400653556,1767768649562,-225.672265,0.0003322,31]
[400653557,1767768649573,-225.672265,0.0003322,31]
[400653558,1767768649586,-218.702509,0.0003322,31]
[400653559,1767768649599,-225.672265,0.0003322,31]
[400653560,1767768649614,-218.702509,0.0003322,31]
[400653561,1767768649625,-218.702509,0.0003322,31]
[400653562,1767768649637,-218.702509,0.0003322,31]
[400653563,1767768649652,-184.812283,0.0003322,31]
[400653564,1767768649666,-184.812283,0.0003322,31]
[400653565,1767768649681,-184.812283,0.0003322,31]
[400653566,1767768649690,-184.812283,0.0003322,31]
[400653567,1767768649700,-634.815792,0.0003322,28]
[400653568,1767768649709,-634.815792,0.0003322,28]
[400653569,1767768649718,-634.815792,0.0003322,28]
[400653570,1767768649728,-634.815792,0.0003322,28]
[400653571,1767768649738,-151.0,0.0003322,31]
[400653572,1767768649747,-247.352857,0.0003322,31]
[400653573,1767768649758,-151.0,0.0003322,31]
[400653574,1767768649768,-151.0,0.0003322,31]
[400653575,1767768649780,-247.352857,0.0003322,31]
[400653576,1767768649791,-247.352857,0.0003322,31]
[400653577,1767768649944,-247.352857,0.0003322,31]
[400653578,1767768649962,-151.0,0.0003322,31]
[400653579,1767768649972,-298.315005,0.0003322,31]
[400653580,1767768649981,-151.0,0.0003322,31]
[400653581,1767768649990,-298.315005,0.0003322,31]
[400653582,1767768649999,-151.0,0.0003322,31]
[400653583,1767768650009,-298.315005,0.0003322,31]
[400653584,1767768650018,-151.0,0.0003322,31]
[400653585,1767768650027,-298.315005,0.0003322,31]
[400653586,1767768650037,-151.0,0.0003322,31]
[400653587,1767768650046,-205.742012,0.0003322,31]
[400653588,1767768650057,-205.742012,0.0003322,31]
[400653589,1767768650066,-151.0,0.0003322,31]
[400653590,1767768650075,-205.742012,0.0003322,31]
[400653591,1767768650084,-151.0,0.0003322,31]
[400653592,1767768650093,-205.742012,0.0003322,31]
[400653593,1767768650102,-440.287203,0.0003322,31]
[400653594,1767768650111,-440.287203,0.0003322,31]
[400653595,1767768650120,-440.287203,0.0003322,31]
[400653596,1767768650129,-440.287203,0.0003322,31]
[400653597,1767768650139,-177.524366,0.0003322,7]
[400653598,1767768650148,-390.92977,0.0003322,31]
[400653599,1767768650157,-390.92977,0.0003322,31]
[400653600,1767768650166,-151.0,0.0003322,31]
[400653601,1767768650175,-390.92977,0.0003322,31]
[400653602,1767768650184,-390.92977,0.0003322,31]
[400653603,1767768650193,-151.0,0.0003322,31]
[400653604,1767768650202,-186.329815,0.0003322,31]
[400653605,1767768650212,-186.329815,0.0003322,31]
[400653606,1767768650221,-186.329815,0.0003322,31]
[400653607,1767768650231,-186.329815,0.0003322,31]
[400653608,1767768650242,-237.990209,0.0003322,31]
[400653609,1767768650251,-151.0,0.0003322,31]
[400653610,1767768650260,-151.0,0.0003322,31]
[400653611,1767768650270,-151.0,0.0003322,31]
[400653612,1767768650279,-193.081788,0.0003322,31]
[400653613,1767768650288,-151.0,0.0003322,31]
[400653614,1767768650297,-151.0,0.0003322,31]
[400653615,1767768650306,-300.0,0.0003322,31]
[400653616,1767768650315,-300.0,0.0003322,31]
[400653617,1767768650324,-187.815389,0.0003322,31]
[400653618,1767768650333,-300.0,0.0003322,31]
[400653619,1767768650342,-187.815389,0.0003322,31]
[400653620,1767768650351,-151.0,0.0003322,2]
[400653621,1767768650361,-300.0,0.0003322,31]
[400653622,1767768650370,-187.815389,0.0003322,31]
[400653623,1767768650379,-151.0,0.0003322,31]
[400653624,1767768650388,-187.815389,0.0003322,31]
[400653625,1767768650397,-151.0,0.0003322,31]
[400653626,1767768650407,-673.621691,0.0003322,31]
[400653627,1767768650416,-151.0,0.0003322,31]
[400653628,1767768650425,-673.621691,0.0003322,31]
[400653629,1767768650434,-673.621691,0.0003322,31]
[400653630,1767768650444,-1664.343388,0.0003322,31]
[400653631,1767768650455,-1664.343388,0.0003322,31]
[400653632,1767768650465,-673.621691,0.0003322,31]
[400653633,1767768650475,-1664.343388,0.0003322,31]
[400653634,1767768650484,-1664.343388,0.0003322,31]
[400653635,1767768650494,-151.0,0.0003322,31]
[400653636,1767768650503,-151.0,0.0003322,31]
[400653637,1767768650514,-151.0,0.0003322,31]
[400653638,1767768650524,-193.751702,0.0003322,31]
[400653639,1767768650538,-215.570059,0.0003322,8]
[400653640,1767768650558,-206.665209,0.0003322,31]
[400653641,1767768650577,-215.570059,0.0003322,8]
[400653642,1767768650598,-215.570059,0.0003322,8]
[400653643,1767768650610,-206.665209,0.0003322,31]
[400653644,1767768650620,-215.570059,0.0003322,8]
[400653645,1767768650630,-206.665209,0.0003322,31]
[400653646,1767768650639,-206.665209,0.0003322,31]
[400653647,1767768650650,-151.0,0.0003322,31]
[400653648,1767768650659,-151.0,0.0003322,31]
[400653649,1767768650668,-151.0,0.0003322,31]
[400653650,1767768650680,-151.0,0.0003322,31]
[400653651,1767768650690,-151.0,0.0003322,31]
[400653652,1767768650701,-206.229278,0.0003322,31]
[400653653,1767768650710,-151.0,0.0003322,31]
[400653654,1767768650720,-206.229278,0.0003322,31]
[400653655,1767768650729,-151.0,0.0003322,31]
[400653656,1767768650739,-206.229278,0.0003322,31]
[400653657,1767768650749,-206.229278,0.0003322,31]
[400653658,1767768650758,-2414.2803724,0.00033245,2]
[400653659,1767768650768,-640.24385345,0.00033302,2]
[400653660,1767768650779,-5889.0957183,0.00033302,2]
[400653661,1767768650788,-214.456704,0.0003344,31]
[400653662,1767768650798,-214.456704,0.0003344,31]
[400653663,1767768650807,-214.456704,0.0003344,31]
[400653664,1767768650816,-214.456704,0.0003344,31]
[400653665,1767768650825,-151.0,0.0003344,31]
[400653666,1767768650835,-151.0,0.0003344,31]
[400653667,1767768650845,-151.0,0.0003344,31]
[400653668,1767768650854,-151.0,0.0003344,31]
[400653669,1767768650863,-151.0,0.0003344,31]
[400653670,1767768650873,-151.0,0.0003344,31]
[400653671,1767768650883,-151.0,0.0003344,31]
[400653672,1767768650893,-175.703798,0.0003344,31]
[400653673,1767768650903,-1626.684503,0.0003344,31]
[400653674,1767768650912,-1626.684503,0.0003344,31]
[400653675,1767768650922,-1626.684503,0.0003344,31]
[400653676,1767768650931,-1626.684503,0.0003344,31]
[400653677,1767768650940,-157.563377,0.0003344,31]
[400653678,1767768650950,-151.0,0.0003344,31]
[400653679,1767768650962,-151.0,0.0003344,31]
[400653680,1767768650973,-151.0,0.0003344,31]
[400653681,1767768650984,-194.927323,0.0003344,31]
[400653682,1767768651001,-194.927323,0.0003344,31]
[400653683,1767768651011,-151.0,0.0003344,31]
[400653684,1767768651021,-194.927323,0.0003344,31]
[400653685,1767768651030,-194.927323,0.0003344,31]
[400653686,1767768651040,-200.632316,0.0003344,31]
[400653687,1767768651049,-200.632316,0.0003344,31]
[400653688,1767768651059,-200.632316,0.0003344,31]
[400653689,1767768651068,-200.632316,0.0003344,31]
[400653690,1767768651078,-209.524359,0.0003344,31]
[400653691,1767768651087,-209.524359,0.0003344,31]
[400653692,1767768651096,-209.524359,0.0003344,31]
[400653693,1767768651105,-209.524359,0.0003344,31]
[400653694,1767768651115,-241.004676,0.0003344,31]
[400653695,1767768651124,-241.004676,0.0003344,31]
[400653696,1767768651133,-1016.281206,0.0003344,31]
[400653697,1767768651143,-1016.281206,0.0003344,31]
[400653698,1767768651152,-241.004676,0.0003344,31]
[400653699,1767768651161,-1016.281206,0.0003344,31]
[400653700,1767768651170,-241.004676,0.0003344,31]
[400653701,1767768651180,-1016.281206,0.0003344,31]
[400653702,1767768651188,-530.111159,0.0003344,31]
[400653703,1767768651198,-530.111159,0.0003344,31]
[400653704,1767768651208,-530.111159,0.0003344,31]
[400653705,1767768651219,-530.111159,0.0003344,31]
[400653706,1767768651229,-225.672265,0.0003344,31]
[400653707,1767768651238,-225.672265,0.0003344,31]
[400653708,1767768651247,-225.672265,0.0003344,31]
[400653709,1767768651256,-218.702509,0.0003344,31]
[400653710,1767768651268,-225.672265,0.0003344,31]
[400653711,1767768651278,-218.702509,0.0003344,31]
[400653712,1767768651287,-218.702509,0.0003344,31]
[400653713,1767768651298,-218.702509,0.0003344,31]
[400653714,1767768651307,-720.93947623,0.00033451,120]
[400653715,1767768651316,-200.632316,0.00033475,31]
[400653716,1767768651325,-200.632316,0.00033475,31]
[400653717,1767768651335,-200.632316,0.00033475,31]
[400653718,1767768651344,-200.632316,0.00033475,31]
[400653719,1767768651353,-209.524359,0.00033475,31]
[400653720,1767768651362,-209.524359,0.00033475,31]
[400653721,1767768651371,-209.524359,0.00033475,31]
[400653722,1767768651381,-209.524365,0.00033475,31]
[400653723,1767768651390,-241.004676,0.00033475,31]
[400653724,1767768651399,-241.004676,0.00033475,31]
[400653725,1767768651409,-1016.281206,0.00033475,31]
[400653726,1767768651418,-1016.281206,0.00033475,31]
[400653727,1767768651428,-241.004676,0.00033475,31]
[400653728,1767768651440,-1016.281206,0.00033475,31]
[400653729,1767768651451,-241.004669,0.00033475,31]
[400653730,1767768651461,-1016.281207,0.00033475,31]
[400653731,1767768651471,-530.111159,0.00033475,31]
[400653732,1767768651482,-530.111159,0.00033475,31]
[400653733,1767768651491,-530.111159,0.00033475,31]
[400653734,1767768651502,-530.111152,0.00033475,31]
[400653735,1767768651511,-225.672265,0.00033475,31]
[400653736,1767768651521,-225.672265,0.00033475,31]
[400653737,1767768651532,-225.672265,0.00033475,31]
[400653738,1767768651542,-218.702509,0.00033475,31]
[400653739,1767768651552,-225.672258,0.00033475,31]
[400653740,1767768651562,-218.702509,0.00033475,31]
[400653741,1767768651571,-218.702509,0.00033475,31]
[400653742,1767768651581,-218.702508,0.00033475,31]
[400653743,1767768651590,-151.0,0.00033475,31]
[400653744,1767768651602,-151.0,0.00033475,31]
[400653745,1767768651612,-151.0,0.00033475,31]
[400653746,1767768651621,-151.0,0.00033475,31]
[400653747,1767768651631,-151.0,0.00033475,31]
[400653748,1767768651640,-151.0,0.00033475,31]
[400653749,1767768651650,-205.742012,0.00033475,31]
[400653750,1767768651660,-205.742012,0.00033475,31]
[400653751,1767768651671,-151.0,0.00033475,31]
[400653752,1767768651681,-205.742012,0.00033475,31]
[400653753,1767768651692,-151.0,0.00033475,31]
[400653754,1767768651701,-205.742012,0.00033475,31]
[400653755,1767768651711,-440.287203,0.00033475,31]
[400653756,1767768651721,-440.287203,0.00033475,31]
[400653757,1767768651731,-440.287203,0.00033475,31]
[400653758,1767768651740,-440.287203,0.00033475,31]
[400653759,1767768651750,-390.92977,0.00033475,31]
[400653760,1767768651759,-390.92977,0.00033475,31]
[400653761,1767768651770,-151.0,0.00033475,31]
[400653762,1767768651781,-390.92977,0.00033475,31]
[400653763,1767768651791,-390.92977,0.00033475,31]
[400653764,1767768651801,-151.0,0.00033475,31]
[400653765,1767768651815,-186.329815,0.00033475,31]
[400653766,1767768651825,-186.329815,0.00033475,31]
[400653767,1767768651835,-186.329815,0.00033475,31]
[400653768,1767768651846,-186.329815,0.00033475,31]
[400653769,1767768651855,-171.590841,0.00033475,31]
[400653770,1767768651866,-300.0,0.00033475,31]
[400653771,1767768651876,-300.0,0.00033475,31]
[400653772,1767768651887,-300.0,0.00033475,31]
[400653773,1767768651898,-300.0,0.00033475,31]
[400653774,1767768651908,-2497762.65245482,0.00033483,30]
[400653775,1767768652018,-302.0,0.00033483,30]
[400653776,1767768652290,-3e-08,0.00015465,2]
[400653777,1767768652301,-760.99999997,0.00015465,2]
[400653778,1767768652310,-294.0771,0.00030137,3]
[400653779,1767768652319,-294.0771,0.00030137,4]
[400653780,1767768652332,-4902.40755907,0.00033483,30]
[400653781,1767768652343,-14972.01313753,0.00033483,30]
[400653782,1767768652422,-464.283288,0.00012325,2]
[400653783,1767768652431,-464.39603706,0.00015602,2]
[400653784,1767768691194,165.94,7.71e-05,2]
[400653785,1767768691551,248.92,8.06e-05,2]
[400653786,1767768691965,331.89,8.41e-05,2]
[400653787,1767768692392,414.86,8.761e-05,2]
[400653788,1767768692796,497.83,9.111e-05,2]
[400653789,1767768693209,580.81,9.462e-05,2]
[400653790,1767768693635,663.78,9.812e-05,2]
[400653791,1767768694083,746.75,0.00010163,2]
[400653792,1767768694510,829.72,0.00010513,2]
[400653793,1767768766046,162.54,7.437e-05,2]
[400653794,1767768766533,216.73,7.76e-05,2]
[400653795,1767768766912,270.91,8.083e-05,2]
[400653796,1767768767337,325.09,8.407e-05,2]
[400653797,1767768767765,379.27,8.73e-05,2]
[400653798,1767768768172,433.45,9.053e-05,2]
[400653799,1767768768637,487.63,9.377e-05,2]
[400653800,1767768769053,541.81,9.7e-05,2]
[400653801,1767768821175,-5000.0,0.0001208,2]
[400653802,1767768837488,0.01,0.0001208,2]
[400653803,1767768837512,259.33177295,0.0001208,2]
[400653804,1767768839221,193.67,8.014e-05,2]
[400653805,1767768839667,242.08,8.348e-05,2]
[400653806,1767768840114,290.5,8.681e-05,2]
[400653807,1767768840526,338.92,9.015e-05,2]
[400653808,1767768840957,387.33,9.349e-05,2]
[400653809,1767768841385,435.75,9.683e-05,2]
[400653810,1767768841818,484.17,0.00010017,2]
[400653811,1767768845568,2312.35475152,0.0001208,2]
[400653812,1767768857249,-207.50247209,0.00012227,2]
[400653813,1767768857270,-170.45846759,0.00012613,2]
[400653814,1767768909435,203.41,9.281e-05,2]
[400653815,1767768909842,271.21,9.684e-05,2]
[400653816,1767768910378,339.01,0.00010088,2]
[400653817,1767768910863,406.81,0.00010491,2]
[400653818,1767768911306,474.62,0.00010895,2]
[400653819,1767768911725,542.42,0.00011298,2]
[400653820,1767768912172,610.22,0.00011702,2]
[400653821,1767768954821,352.52620905,0.0001208,2]
[400653822,1767768982883,187.53,9.065e-05,2]
[400653823,1767768983316,250.03,9.459e-05,2]
[400653824,1767768983742,312.54,9.853e-05,2]
[400653825,1767768984182,375.05,0.00010247,2]
[400653826,1767768984595,437.56,0.00010641,2]
[400653827,1767768985014,292.96726648,0.00011035,2]
[400653828,1767768985055,207.10273352,0.00011035,2]
[400653829,1767768985474,562.58,0.0001143,2]
[400653830,1767768985873,625.08,0.00011824,2]
[400653831,1767769046135,-9857.38013923,0.00012956,2]
[400653832,1767769055799,177.55,7.143e-05,2]
[400653833,1767769056265,236.73,7.454e-05,2]
[400653834,1767769056677,295.92,7.765e-05,2]
[400653835,1767769057098,355.1,8.075e-05,2]
[400653836,1767769057554,414.28,8.386e-05,2]
[400653837,1767769057968,473.47,8.696e-05,2]
[400653838,1767769058384,532.65,9.007e-05,2]
[400653839,1767769058859,591.83,9.317e-05,2]
[400653840,1767769082541,153.47761617,0.00030137,120]
[400653844,1767769110803,-5000.0,0.00012924,2]
[400653845,1767769132460,180.96,7.3e-05,2]
[400653846,1767769133116,241.29,7.618e-05,2]
[400653847,1767769133527,301.61,7.935e-05,2]
[400653848,1767769134007,361.93,8.252e-05,2]
[400653849,1767769134421,422.25,8.57e-05,2]
[400653850,1767769134965,482.57,8.887e-05,2]
[400653851,1767769135265,542.89,9.205e-05,2]
[400653852,1767769135706,603.21,9.522e-05,2]
[400653853,1767769163915,-32838.4765256,0.00012443,2]
[400653854,1767769163940,-228.70076657,0.00012956,2]
[400653857,1767769205918,201.45,8.901e-05,2]
[400653858,1767769206331,268.6,9.288e-05,2]
[400653859,1767769206859,335.75,9.675e-05,2]
[400653860,1767769207192,402.9,0.00010062,2]
[400653861,1767769207767,470.05,0.00010449,2]
[400653862,1767769208030,537.2,0.00010836,2]
[400653863,1767769208496,604.35,0.00011223,2]
[400653864,1767769208993,671.5,0.0001161,2]
[400653865,1767769279773,165.55,9.294e-05,2]
[400653866,1767769280181,206.94,9.682e-05,2]
[400653867,1767769280619,248.32,0.00010069,2]
[400653868,1767769281041,289.71,0.00010456,2]
[400653869,1767769281442,331.1,0.00010843,2]
[400653870,1767769281838,372.49,0.00011231,2]
[400653871,1767769282272,413.87,0.00011618,2]
[400653872,1767769285933,-2167.9726699,0.00012242,2]
[400653873,1767769285959,-300.0,0.00012923,2]
[400653874,1767769285983,-5000.0,0.00012924,2]
[400653875,1767769286003,-603.0,0.00012924,2]
[400653876,1767769286026,-1929.0273301,0.00012956,2]
[400653877,1767769291348,-6696.18029177,0.00012956,2]
[400653879,1767769351991,156.2,8.272e-05,2]
[400653880,1767769352404,182.24,8.59e-05,2]
[400653881,1767769352815,208.27,8.908e-05,2]
[400653882,1767769353220,234.31,9.226e-05,2]
[400653883,1767769353745,260.34,9.544e-05,2]
[400653884,1767769377964,-5000.0,0.00012875,2]
[400653886,1767769474377,-5000.0,0.00012875,2]
[400653887,1767769489551,151.95,8.908e-05,2]
[400653888,1767769490143,170.95,9.226e-05,2]
[400653889,1767769525430,-5000.0,0.00012825,2]
[400653891,1767769622319,-461.0,0.00012825,2]
[400653892,1767769686169,-1716.0,0.00012825,2]
[400653935,1767769832013,-398.0,0.00012541,2]
[400653940,1767769837860,-77.15787373,0.00012541,2]
[400653941,1767769837870,-5000.0,0.00012697,2]
[400653942,1767769837882,-600.0,0.00012697,2]
[400653943,1767769837892,-197.3583187,0.00012913,2]
[400653944,1767769837901,-300.0,0.00012953,2]
[400653945,1767769837910,-7547.05666911,0.00012953,2]
[400653946,1767769837920,-396.79,0.00013,2]
[400653947,1767769837929,-300.0,0.00013052,2]
[400653948,1767769837939,-166.0,0.00013052,2]
[400653949,1767769837948,-500.0,0.00013053,2]
[400653950,1767769837957,-500.0,0.00013053,2]
[400653951,1767769837966,-500.0,0.00013053,2]
[400653952,1767769837976,-210.60102179,0.00013053,2]
[400653953,1767769837985,-500.0,0.00013053,2]
[400653954,1767769837995,-199.6066181,0.00013053,2]
[400653955,1767769838004,-500.0,0.00013053,2]
[400653956,1767769838013,-500.0,0.00013053,2]
[400653957,1767769838024,-500.0,0.00013053,2]
[400653958,1767769838034,-500.0,0.00013053,2]